bitfinex/quotes_ETHUSD_20240729
["timestamp","ask_amount","ask_price","bid_price","bid_amount"]
[1722282600435,3.01378,3318.1,3317.3,3.01443]
[1722282600674,3.01403,3317.9,3317.1,3.01467]
[1722282600832,2.4711,3318.3,3316.9,3.01483]
[1722282600833,3.01406,3317.8,3316.9,3.01483]
[1722282601170,3.01406,3317.8,3317.1,3.01461]
[1722282601371,3.01406,3317.8,3317.2,3.01458]
[1722282602836,3.01389,3318.0,3317.3,3.01449]
[1722282603038,3.315279,3318.0,3317.3,3.01449]
[1722282603268,6.329229,3318.0,3317.3,3.01449]
[1722282603481,3.01402,3317.9,3317.2,3.01458]
[1722282604537,3.01411,3317.8,3317.0,3.0147]
[1722282604742,3.6470489,3317.8,3317.0,3.0147]
[1722282604937,3.01415,3317.7,3317.0,3.0147]
[1722282605163,3.6470489,3317.8,3317.0,3.0147]
[1722282605164,3.01423,3317.6,3317.0,3.0147]
[1722282605469,5.50379,3317.7,3316.8,3.01489]
[1722282605677,5.50379,3317.7,3317.0,3.01471]
[1722282606479,3.01401,3317.9,3317.2,3.01458]
[1722282607177,3.01406,3317.8,3317.2,3.01458]
[1722282607949,3.01413,3317.7,3316.8,6.0298]
[1722282608148,2.3429,3317.3,3316.6,3.01512]
[1722282608374,2.3429,3317.3,3316.7,3.01503]
[1722282608588,2.3429,3317.3,3316.6,3.01512]
[1722282608589,2.3429,3317.3,3316.8,3.01493]
[1722282608760,2.4706,3317.6,3316.9,3.01485]
[1722282608966,5.48483,3317.6,3316.9,3.01485]
[1722282609762,5.48483,3317.6,3316.9,3.01479]
[1722282610313,3.01404,3317.8,3317.1,3.01462]
[1722282610494,3.01404,3317.8,3317.1,5.26992]
[1722282611364,2.4888,3318.3,3317.6,3.01422]
[1722282611669,3.057953,3318.3,3317.6,3.01422]
[1722282612033,3.057953,3318.3,3317.4,3.01435]
[1722282612034,3.01377,3318.1,3317.4,3.01435]
[1722282612227,3.057953,3318.3,3317.2,3.01458]
[1722282612519,3.01387,3318.0,3317.2,3.01453]
[1722282612717,3.0137,3318.2,3317.3,3.01448]
[1722282612718,3.01395,3317.9,3317.3,3.01448]
[1722282612862,3.01383,3318.1,3317.3,0.06028269]
[1722282613059,3.01383,3318.1,3317.5,3.01431]
[1722282613495,2.4888,3318.3,3317.6,3.07447268]
[1722282613696,5.5024,3318.3,3317.6,3.07447268]
[1722282614087,3.01369,3318.2,3317.6,3.07447268]
[1722282614271,3.01379,3318.1,3317.4,3.01434]
[1722282614895,3.01386,3318.0,3317.4,3.01434]
[1722282615099,3.01375,3318.2,3317.5,3.07458805]
[1722282615514,3.01378,3318.1,3317.3,6.0289]
[1722282615679,3.01378,3318.1,3317.3,3.01442]
[1722282616123,3.01378,3318.1,3317.4,0.06027806]
[1722282616413,3.01398,3317.9,3317.1,5.26995]
[1722282616714,3.01398,3317.9,3317.2,3.01458]
[1722282620342,3.01398,3317.9,3317.3,3.01449]
[1722282621036,3.01398,3317.9,3317.1,5.26995]
[1722282621037,3.01398,3317.9,3317.1,8.28455]
[1722282621185,3.01398,3317.9,3317.2,3.01456]
[1722282624840,3.01398,3317.9,3317.3,3.01449]
[1722282626012,3.01398,3317.9,3317.1,5.2699]
[1722282626013,3.01398,3317.9,3317.1,3.0146]
[1722282626214,3.01398,3317.9,3316.8,2.3813]
[1722282626215,3.01415,3317.7,3316.8,2.3813]
[1722282626439,3.213498,3317.9,3316.8,3.01492]
[1722282626440,3.01443,3317.4,3316.8,3.01492]
[1722282626637,3.01464,3317.2,3316.5,3.01522]
[1722282628534,5.39672,3317.3,3316.6,3.01513]
[1722282629427,3.01459,3317.2,3316.6,3.01513]
[1722282631794,0.06175106,3317.1,3316.6,3.01513]
[1722282632734,0.06175106,3317.1,3316.7,3.01503]
[1722282632890,3.01434,3317.5,3316.7,3.01503]
[1722282633086,3.01441,3317.4,3316.7,3.01503]
[1722282633290,3.07586358,3317.4,3316.7,3.01503]
[1722282633494,3.07586358,3317.4,3316.6,2.4806]
[1722282633495,3.01452,3317.3,3316.6,2.4806]
[1722282633720,3.07595723,3317.3,3316.6,5.49573]
[1722282634141,3.07595723,3317.3,3316.7,3.01502]
[1722282635715,0.06143723,3317.3,3316.8,3.01489]
[1722282636133,3.01434,3317.5,3316.8,3.01489]
[1722282636309,0.06133588,3317.2,3316.8,3.01489]
[1722282636489,3.01434,3317.5,3316.8,3.01489]
[1722282636841,0.06131953,3317.1,3316.8,3.01489]
[1722282637148,0.06130317,3317.0,3316.8,3.01489]
[1722282637301,2.2921,3317.3,3315.9,5.4014]
[1722282637500,0.06130681,3316.9,3316.6,3.01512]
[1722282637731,2.2921,3317.3,3316.6,3.01512]
[1722282637929,0.06137991,3316.8,3316.6,3.01512]
[1722282638110,2.2921,3317.3,3316.6,3.01512]
[1722282638442,0.06136355,3316.7,3316.6,3.01512]
[1722282638637,5.30662,3317.3,3316.7,3.01503]
[1722282638845,2.2921,3317.3,3316.7,3.01503]
[1722282639012,0.06131434,3317.2,3316.7,3.01503]
[1722282639208,0.06131434,3317.2,3316.8,3.01494]
[1722282639509,2.2921,3317.3,3316.8,3.01494]
[1722282639721,0.06146227,3317.1,3316.8,3.01494]
[1722282640045,0.06147058,3317.2,3316.7,0.06029392]
[1722282640345,0.06068496,3317.1,3316.7,3.07533392]
[1722282640697,2.2921,3317.3,3316.7,3.07533392]
[1722282640897,0.0606773,3317.0,3316.7,3.07533392]
[1722282641139,3.01459,3317.2,3316.5,2.4368]
[1722282641352,3.01459,3317.2,3316.5,3.01521]
[1722282641510,3.01459,3317.2,3316.2,2.4253]
[1722282641511,3.01479,3317.0,3316.2,2.4253]
[1722282641853,3.01479,3317.0,3316.3,3.01533]
[1722282642016,0.06071485,3316.9,3316.3,3.01533]
[1722282642200,0.06071485,3316.9,3316.2,5.4253]
[1722282642201,3.07562485,3316.9,3316.2,3.01548]
[1722282642545,3.01496,3316.8,3316.2,3.01548]
[1722282642755,3.07563849,3316.8,3316.2,3.01548]
[1722282643553,2.407,3316.7,3316.0,3.01568]
[1722282643719,3.01522,3316.5,3315.8,3.01584]
[1722282644238,3.07570635,3316.4,3315.7,3.01594]
[1722282645105,3.07570635,3316.4,3315.4,3.01619]
[1722282645106,2.4929,3316.3,3315.6,3.01604]
[1722282645304,3.0156,3316.1,3315.2,5.43923]
[1722282645496,3.01589,3315.8,3315.0,3.01652]
[1722282645702,0.06026344,3315.7,3315.2,3.01639]
[1722282646785,3.07621344,3315.7,3315.0,3.01652]
[1722282647434,0.06026344,3315.7,3315.1,3.01649]
[1722282647834,5.69382,3315.9,3315.2,3.01639]
[1722282648086,0.05980639,3315.6,3315.2,3.01639]
[1722282648237,5.69382,3315.9,3315.2,3.01639]
[1722282648938,0.05983468,3315.8,3315.2,3.01639]
[1722282649376,0.05983468,3315.8,3315.3,3.07660944]
[1722282649714,3.0155,3316.2,3315.5,3.01607]
[1722282650005,0.05982442,3315.7,3315.5,3.01607]
[1722282650220,3.0156,3316.1,3315.5,3.01607]
[1722282650515,3.01569,3316.0,3315.3,3.01629]
[1722282650717,3.07557706,3316.0,3315.3,3.01629]
[1722282652273,3.07557706,3316.0,3314.7,3.01684]
[1722282652274,3.01625,3315.4,3314.7,3.01684]
[1722282652477,3.01625,3315.4,3314.8,3.0]
[1722282652694,0.05987849,3315.3,3314.8,3.0]
[1722282653082,3.07620849,3315.3,3314.5,3.01701]
[1722282653293,5.42780849,3315.3,3314.6,6.01695]
[1722282655034,5.42780849,3315.3,3314.8,3.01676]
[1722282655035,2.41147849,3315.3,3314.8,3.01676]
[1722282655213,2.41147849,3315.3,3314.2,9.7469]
[1722282655214,3.01669,3314.9,3314.2,10.35724]
[1722282655386,3.01669,3314.9,3314.2,3.01724]
[1722282655584,0.05963526,3314.8,3314.2,3.01724]
[1722282657830,0.05871997,3314.8,3314.2,3.01724]
[1722282658733,0.05871997,3314.8,3314.3,3.01722]
[1722282659333,0.05871997,3314.8,3314.4,3.01712]
[1722282659495,3.01658,3315.1,3314.4,3.01712]
[1722282659706,0.05890898,3315.0,3314.4,3.01712]
[1722282660344,0.05890898,3315.0,3313.9,5.3108]
[1722282660644,5.36795,3315.3,3314.9,3.01667]
[1722282660645,2.3516,3315.3,3314.9,3.01667]
[1722282661346,2.3516,3315.3,3314.7,3.01677]
[1722282661936,5.36792,3315.3,3314.7,3.01677]
[1722282662306,2.3516,3315.3,3314.7,3.01677]
[1722282662507,2.3516,3315.3,3314.8,3.01674]
[1722282662759,2.3516,3315.3,3314.7,3.01677]
[1722282662957,2.3516,3315.3,3314.8,3.01676]
[1722282664361,2.3516,3315.3,3314.9,3.01667]
[1722282664657,2.3516,3315.3,3314.7,3.01679]
[1722282664826,2.3516,3315.3,3314.6,3.01691]
[1722282664827,2.3516,3315.3,3314.8,3.01676]
[1722282665351,0.05890212,3315.2,3314.8,3.01676]
[1722282665653,2.3516,3315.3,3314.8,3.01676]
[1722282665812,0.05888574,3315.1,3314.8,3.01676]
[1722282666012,2.3516,3315.3,3314.8,3.01676]
[1722282666276,0.05886937,3315.0,3314.8,3.01676]
[1722282666408,2.3516,3315.3,3314.8,3.01676]
[1722282666610,0.05885299,3314.9,3314.8,3.01676]
[1722282666805,2.3516,3315.3,3314.8,3.01676]
[1722282667345,0.05890212,3315.2,3314.9,3.01667]
[1722282667530,5.47507,3315.6,3314.9,3.01667]
[1722282667729,0.05892685,3315.1,3314.9,3.01667]
[1722282667987,3.01621,3315.5,3314.8,3.01676]
[1722282668189,0.05885824,3315.0,3314.8,3.01676]
[1722282668330,3.01629,3315.4,3314.6,3.01686]
[1722282668531,0.05886022,3314.9,3314.2,2.2695]
[1722282668856,3.01632,3315.3,3314.6,3.01694]
[1722282669039,0.05886164,3314.8,3314.6,3.01694]
[1722282669240,3.01632,3315.3,3314.6,3.01694]
[1722282669553,2.2978,3315.1,3314.6,3.01694]
[1722282670071,0.05896905,3315.0,3314.7,3.01686]
[1722282670580,0.05896905,3315.0,3314.8,3.01676]
[1722282672372,2.4858,3315.4,3314.8,3.01676]
[1722282672576,0.05895072,3314.9,3314.8,3.01676]
[1722282672743,2.4858,3315.4,3314.8,3.01676]
[1722282672929,2.4858,3315.4,3314.9,3.01666]
[1722282673576,5.50203,3315.4,3314.8,3.01676]
[1722282677071,3.01644,3315.2,3314.6,3.01692]
[1722282677278,2.2993,3315.1,3314.4,3.01713]
[1722282677473,0.550203,3315.4,3314.0,3.01747]
[1722282677474,3.01683,3314.8,3314.0,3.01747]
[1722282677693,3.01683,3314.8,3313.8,6.03524]
[1722282677694,3.01697,3314.6,3313.8,6.03524]
[1722282678008,3.01697,3314.6,3313.9,3.01758]
[1722282678207,3.01697,3314.6,3313.9,3.0175]
[1722282678555,3.01705,3314.5,3313.9,3.0175]
[1722282678757,2.2993,3314.4,3313.9,3.0175]
[1722282680606,0.05860381,3314.3,3314.0,3.01749]
[1722282680902,0.05860381,3314.3,3314.2,3.01731]
[1722282681204,5.26872,3314.9,3314.2,3.01731]
[1722282681355,0.05661797,3314.3,3314.2,3.01731]
[1722282681559,5.26872,3314.9,3314.2,3.01731]
[1722282681761,0.05662391,3314.3,3314.2,3.01731]
[1722282681957,5.26872,3314.9,3314.2,3.01731]
[1722282682194,0.05662391,3314.3,3314.2,3.01731]
[1722282682352,3.01678,3314.8,3314.2,3.01731]
[1722282682557,0.05662391,3314.3,3314.2,3.01731]
[1722282682812,3.01678,3314.8,3314.2,3.01731]
[1722282682989,3.01678,3314.8,3314.1,3.0174]
[1722282682990,0.05662391,3314.3,3314.1,3.0174]
[1722282683169,3.01678,3314.8,3314.1,3.0174]
[1722282683369,0.05663646,3314.2,3314.1,3.0174]
[1722282683608,3.01678,3314.8,3314.1,3.0174]
[1722282683814,0.05663646,3314.2,3314.1,3.0174]
[1722282684128,3.01688,3314.7,3314.1,3.01741]
[1722282684289,0.05663646,3314.2,3314.1,3.01741]
[1722282684608,3.01688,3314.7,3314.1,3.01741]
[1722282684793,0.05662756,3314.2,3314.1,3.01741]
[1722282685114,3.01688,3314.7,3314.1,3.01741]
[1722282685720,0.05669307,3314.6,3314.1,3.01741]
[1722282688231,2.252,3314.9,3313.9,0.06034303]
[1722282688395,2.678,3315.3,3315.1,3.01643]
[1722282688396,2.3188,3315.3,3315.1,3.01643]
[1722282688575,2.3188,3315.3,3314.9,3.01664]
[1722282688576,3.01587,3315.8,3315.2,3.0164]
[1722282688770,3.01587,3315.8,3314.9,3.01664]
[1722282688771,2.62036,3316.0,3315.0,0.06032407]
[1722282689006,2.62036,3316.0,3314.6,3.01691]
[1722282689007,3.01588,3315.8,3315.1,3.01648]
[1722282689205,3.317598,3315.7,3315.0,3.01656]
[1722282689387,0.301588,3315.7,3315.0,3.01659]
[1722282689716,0.301588,3315.7,3314.8,3.01676]
[1722282689717,3.01595,3315.7,3315.1,3.01649]
[1722282690497,5.63607,3316.0,3315.3,3.01624]
[1722282690698,2.3188,3316.0,3315.3,3.01624]
[1722282691216,5.3345,3316.0,3315.4,3.01621]
[1722282692013,5.3345,3316.0,3315.2,3.01635]
[1722282692220,5.3345,3316.0,3315.3,3.0163]
[1722282693322,3.01587,3315.8,3315.1,3.01648]
[1722282693683,3.01604,3315.7,3315.0,3.01657]
[1722282694021,3.01587,3315.8,3315.1,3.01643]
[1722282694230,3.54923,3315.9,3315.1,3.01643]
[1722282694231,3.01578,3315.9,3315.1,3.01643]
[1722282695281,3.01578,3315.9,3314.4,2.2507]
[1722282695282,2.3188,3316.0,3315.3,3.01629]
[1722282695482,0.05501278,3315.8,3315.4,3.01622]
[1722282695723,0.05502915,3315.9,3315.4,3.01622]
[1722282696023,2.3188,3316.0,3315.2,3.01639]
[1722282696024,0.0550384,3315.8,3315.2,3.01639]
[1722282696319,5.33449,3316.0,3315.2,3.01639]
[1722282696529,0.05526334,3315.7,3315.2,3.01635]
[1722282696823,0.05536448,3315.6,3315.2,3.01635]
[1722282696983,5.3345,3316.0,3315.3,3.01631]
[1722282697179,0.05535033,3315.5,3315.3,3.01631]
[1722282697380,5.3345,3316.0,3315.3,3.01631]
[1722282697685,0.05533618,3315.4,3315.3,3.01631]
[1722282697886,5.33448,3316.0,3315.3,3.01631]
[1722282698114,0.05533618,3315.4,3315.3,3.01631]
[1722282698317,5.33448,3316.0,3315.3,3.01631]
[1722282698530,3.07118803,3315.9,3315.3,3.01631]
[1722282699321,3.01601,3315.7,3314.9,3.01661]
[1722282699525,3.01605,3315.6,3314.9,3.01661]
[1722282699675,0.05535558,3315.6,3314.9,3.01661]
[1722282699880,0.05535558,3315.6,3315.0,3.01657]
[1722282700308,0.05535558,3315.6,3315.1,3.01647]
[1722282700522,0.05535558,3315.6,3315.2,3.01633]
[1722282700727,0.05535558,3315.6,3315.4,3.01616]
[1722282701020,2.3188,3316.0,3315.4,3.01616]
[1722282701021,0.05535927,3315.5,3315.4,3.01616]
[1722282701225,5.867922,3316.0,3315.2,3.01633]
[1722282701383,0.05535927,3315.5,3315.2,3.01633]
[1722282701588,3.01578,3315.9,3315.2,3.01633]
[1722282701817,0.0553429,3315.4,3315.3,6.09293034]
[1722282702126,2.852242,3316.0,3315.5,3.01611]
[1722282702127,2.3188,3316.0,3315.5,3.01611]
[1722282702285,2.852236,3316.0,3315.3,3.01625]
[1722282702487,0.05544697,3315.9,3315.3,3.01625]
[1722282703931,0.05544697,3315.9,3315.4,3.01621]
[1722282704988,0.05544697,3315.9,3315.6,3.01603]
[1722282705223,0.05544697,3315.9,3315.4,3.01621]
[1722282705817,0.05544697,3315.9,3315.2,6.03271]
[1722282706237,0.05544697,3315.9,3315.2,6.03267]
[1722282706554,0.05544697,3315.9,3315.3,3.0163]
[1722282706952,0.05544697,3315.9,3315.3,3.01629]
[1722282709939,3.01586,3315.8,3315.2,3.01633]
[1722282710332,3.06945557,3315.8,3315.2,3.01633]
[1722282712950,0.05359557,3315.8,3315.2,3.01632]
[1722282713150,0.05359557,3315.8,3315.3,3.01631]
[1722282713354,0.0535792,3315.7,3315.3,3.01631]
[1722282713688,5.33449,3316.0,3315.3,3.01631]
[1722282713880,0.0526095,3315.6,3315.3,3.01631]
[1722282714081,5.33449,3316.0,3315.3,3.01631]
[1722282714278,0.05259313,3315.5,3315.3,3.01631]
[1722282714439,5.33449,3316.0,3315.3,3.01631]
[1722282714637,0.05257676,3315.4,3315.3,3.01631]
[1722282714940,5.33449,3316.0,3315.3,3.01631]
[1722282715145,0.05258121,3315.4,3315.3,3.01631]
[1722282715475,6.169493,3316.0,3315.3,3.01631]
[1722282715681,0.05258121,3315.4,3315.3,3.01631]
[1722282715880,5.33449,3316.0,3315.3,3.01631]
[1722282716184,0.05258121,3315.4,3315.3,3.01631]
[1722282716367,0.05266528,3315.9,3315.4,3.01616]
[1722282716538,0.05266528,3315.9,3315.5,3.01611]
[1722282716741,2.3188,3316.0,3315.5,3.01611]
[1722282718588,2.3188,3316.0,3315.4,0.06032042]
[1722282718796,2.3311,3316.4,3316.1,3.01556]
[1722282719495,2.3311,3316.7,3316.2,3.01549]
[1722282719691,2.3311,3316.7,3316.1,3.01556]
[1722282720194,5.34615,3316.7,3316.1,3.01556]
[1722282720392,2.3311,3316.7,3316.1,3.01556]
[1722282720781,3.01517,3316.6,3315.9,6.03147]
[1722282720960,3.851299,3316.6,3315.9,3.01571]
[1722282721352,3.0154,3316.3,3315.5,3.01607]
[1722282721775,3.0154,3316.3,3315.5,3.01605]
[1722282722163,3.01551,3316.2,3315.5,3.01605]
[1722282722560,3.0154,3316.3,3315.5,3.01605]
[1722282722766,3.0154,3316.3,3315.7,3.01595]
[1722282723279,3.0154,3316.3,3315.5,3.01605]
[1722282723481,3.0154,3316.3,3315.6,3.01603]
[1722282723646,3.0154,3316.3,3315.3,3.01627]
[1722282723647,3.01562,3316.1,3315.4,3.01616]
[1722282723847,3.01562,3316.1,3315.3,3.01631]
[1722282723848,2.356,3316.0,3315.3,3.01631]
[1722282724080,5.37174,3316.0,3315.3,3.01631]
[1722282724388,3.01578,3315.9,3315.3,3.01631]
[1722282724885,2.356,3316.0,3315.4,3.01621]
[1722282725071,2.356,3316.0,3315.3,3.01631]
[1722282725473,0.04919486,3315.9,3315.1,6.03289]
[1722282725792,0.04919486,3315.9,3315.3,3.01629]
[1722282726284,0.04919486,3315.9,3315.2,3.01639]
[1722282726874,0.04919486,3315.9,3315.3,3.01629]
[1722282727098,0.04919486,3315.9,3315.4,3.01617]
[1722282727282,0.04919486,3315.9,3315.5,3.01611]
[1722282728590,2.4255,3316.3,3315.8,3.01586]
[1722282728895,0.04918218,3316.2,3315.9,3.01575]
[1722282729257,2.4255,3316.3,3315.9,3.01575]
[1722282729449,0.04918218,3316.2,3315.9,3.01575]
[1722282729654,2.4255,3316.3,3315.9,3.01575]
[1722282729894,0.04916582,3316.1,3315.9,3.01575]
[1722282730056,2.4255,3316.3,3315.9,3.01575]
[1722282730252,0.04907663,3316.2,3315.9,3.01575]
[1722282730493,2.4255,3316.3,3315.9,3.01575]
[1722282730801,2.4255,3316.3,3315.4,2.3318]
[1722282730802,0.04906026,3316.1,3315.6,3.01598]
[1722282730966,5.44096,3316.3,3315.6,3.01598]
[1722282731167,3.01564,3316.1,3315.4,3.01621]
[1722282731371,6.286571,3316.3,3315.4,3.01621]
[1722282731692,3.01564,3316.1,3315.4,3.01621]
[1722282732059,0.04912876,3316.0,3315.4,3.01621]
[1722282732458,3.06481876,3316.0,3315.4,3.01621]
[1722282733862,0.04912876,3316.0,3315.4,6.03236]
[1722282734093,0.04912876,3316.0,3315.4,3.01615]
[1722282734255,3.01559,3316.1,3315.4,3.01615]
[1722282734473,0.04902624,3316.0,3315.4,3.01615]
[1722282736793,3.0155,3316.2,3315.4,3.01615]
[1722282737109,9.7251,3316.6,3315.6,2.4259]
[1722282737257,9.7251,3316.6,3315.8,3.0158]
[1722282737258,0.0490582,3316.1,3315.8,3.0158]
[1722282737454,9.7251,3316.6,3316.0,3.01568]
[1722282737701,0.04899346,3316.5,3316.0,3.01568]
[1722282737905,3.06422346,3316.5,3315.8,3.0158]
[1722282738061,3.06422346,3316.5,3315.9,3.01576]
[1722282738662,3.06422346,3316.5,3315.8,3.0158]
[1722282738865,3.06422346,3316.5,3315.8,6.03159]
[1722282739201,3.06422346,3316.5,3315.8,3.01579]
[1722282739402,3.01541,3316.3,3315.7,3.07620053]
[1722282739710,0.04903295,3316.2,3315.6,3.01598]
[1722282740021,0.04903295,3316.2,3315.5,3.01611]
[1722282740022,5.37075,3316.1,3315.5,3.01611]
[1722282740345,3.06479077,3316.0,3315.3,3.01631]
[1722282740632,3.01577,3315.9,3315.2,0.06032037]
[1722282740788,0.04912481,3315.8,3315.2,0.06032037]
[1722282740984,0.04912481,3315.8,3315.3,3.01631]
[1722282742338,0.04912481,3315.8,3315.4,3.01622]
[1722282742827,5.8766193,3316.1,3314.9,3.01668]
[1722282742828,3.01612,3315.6,3314.9,3.01668]
[1722282743038,2.678,3315.7,3314.3,3.65001623]
[1722282743039,3.01641,3315.2,3314.3,3.65001623]
[1722282743201,3.06549106,3315.1,3314.3,3.01717]
[1722282743404,3.01659,3315.0,3314.1,5.27447]
[1722282743726,0.04885264,3314.9,3314.3,3.01719]
[1722282743939,0.04885264,3314.9,3314.5,3.01696]
[1722282744145,3.01625,3315.4,3314.5,3.01696]
[1722282744511,0.04882005,3315.3,3314.5,3.01696]
[1722282745042,3.01643,3315.2,3314.5,3.01696]
[1722282745216,0.0487873,3315.1,3314.5,3.01696]
[1722282746236,0.0487873,3315.1,3314.6,3.01695]
[1722282747234,3.01625,3315.4,3314.6,3.01695]
[1722282747441,3.0650496,3315.3,3314.6,3.01695]
[1722282748145,0.0486796,3315.3,3314.7,3.01684]
[1722282749511,3.0649996,3315.3,3314.7,3.01684]
[1722282749918,3.0649996,3315.3,3314.5,3.01697]
[1722282750647,3.0649996,3315.3,3314.6,3.01694]
[1722282751375,0.0486796,3315.3,3314.8,3.01674]
[1722282751673,2.4868,3315.5,3314.1,2.2571]
[1722282751674,2.4868,3315.5,3314.6,3.01693]
[1722282751826,0.04695925,3315.4,3314.8,3.0167]
[1722282752031,0.04695925,3315.4,3314.8,3.01671]
[1722282752344,3.06318925,3315.4,3314.8,3.01671]
[1722282752733,0.04695925,3315.4,3314.8,3.01671]
[1722282753368,3.06318925,3315.4,3314.8,3.01671]
[1722282754384,3.06318925,3315.4,3314.6,6.0338]
[1722282754531,3.01634,3315.3,3314.6,3.01688]
[1722282754854,0.04693456,3315.2,3314.7,3.01684]
[1722282758447,0.04693456,3315.2,3314.8,3.01676]
[1722282758648,5.50293,3315.5,3314.8,3.01676]
[1722282758852,3.06318841,3315.4,3314.8,3.01676]
[1722282760186,3.01639,3315.3,3314.6,3.01688]
[1722282760695,0.04699597,3315.2,3314.6,6.03375]
[1722282760861,0.04699597,3315.2,3314.6,3.01687]
[1722282761449,0.04699597,3315.2,3314.7,3.01685]
[1722282762274,3.06341597,3315.2,3314.5,3.01698]
[1722282762491,0.04699597,3315.2,3314.6,3.01694]
[1722282762864,0.04699597,3315.2,3314.7,3.01686]
[1722282764370,2.3638,3315.0,3314.1,3.01736]
[1722282764652,3.06341352,3314.9,3314.2,6.01726]
[1722282764884,3.06341352,3314.9,3314.2,3.01726]
[1722282765394,3.01677,3314.8,3314.2,3.01726]
[1722282765802,0.04679014,3314.7,3314.2,3.01726]
[1722282766098,0.04679014,3314.7,3314.1,3.01739]
[1722282766099,3.06367014,3314.7,3314.1,3.01739]
[1722282766299,2.3638,3314.6,3313.8,3.01767]
[1722282766524,0.04676543,3314.5,3313.8,3.01767]
[1722282767235,0.04676543,3314.5,3313.6,3.01778]
[1722282767236,3.01719,3314.4,3313.6,3.01778]
[1722282767576,3.063877,3314.3,3313.6,3.01778]
[1722282768028,2.3638,3314.2,3313.6,3.01778]
[1722282768211,2.3638,3314.2,3313.8,3.01766]
[1722282768521,0.04528057,3314.1,3313.8,3.01766]
[1722282769389,0.04528057,3314.1,3313.6,3.01778]
[1722282771790,0.04528057,3314.1,3313.7,3.01775]
[1722282771991,2.3638,3314.2,3313.7,3.01775]
[1722282772378,2.3638,3314.2,3313.5,3.01789]
[1722282772583,3.0611802,3314.1,3313.4,3.01802]
[1722282772783,3.01751,3314.0,3313.4,3.01802]
[1722282772978,3.01751,3314.0,3313.2,3.01817]
[1722282772979,0.04366742,3313.9,3313.2,3.01817]
[1722282773280,0.04366742,3313.9,3312.9,3.0]
[1722282773281,3.01778,3313.7,3312.9,3.0185]
[1722282773513,0.04363274,3313.6,3312.9,3.0185]
[1722282773685,0.04363274,3313.6,3313.0,3.0184]
[1722282774537,3.01812,3313.4,3312.5,3.01879]
[1722282774695,3.551742,3313.3,3312.5,3.01879]
[1722282775050,2.3606961,3313.2,3312.5,3.01879]
[1722282775241,5.3789261,3313.2,3312.3,3.01902]
[1722282775438,3.01846,3313.0,3312.4,3.01894]
[1722282775596,0.04171186,3312.9,3312.5,0.06037128]
[1722282775802,0.04171186,3312.9,3312.0,3.01928]
[1722282775803,2.3173,3313.2,3312.6,3.01869]
[1722282776000,2.3173,3313.2,3312.5,3.01885]
[1722282776001,3.06006466,3313.1,3312.5,3.01885]
[1722282776197,3.06006466,3313.1,3311.8,3.0195]
[1722282776198,3.06006466,3313.1,3312.2,3.01906]
[1722282776622,0.04174466,3313.1,3312.5,3.0188]
[1722282776796,0.04174466,3313.1,3312.6,3.01875]
[1722282777249,0.04174466,3313.1,3312.6,3.01873]
[1722282777630,0.04174466,3313.1,3312.7,3.01867]
[1722282778223,0.23590447,3313.0,3312.4,3.01892]
[1722282778537,0.04159844,3312.9,3312.5,3.01886]
[1722282778914,2.3173,3313.2,3312.7,3.01868]
[1722282779099,0.04163123,3313.1,3312.5,3.01886]
[1722282779303,0.04163123,3313.1,3312.6,3.01876]
[1722282779498,0.04163123,3313.1,3312.7,3.01868]
[1722282780256,0.04163123,3313.1,3311.9,3.0]
[1722282780409,0.04163123,3313.1,3312.7,3.01861]
[1722282780918,0.04163123,3313.1,3312.0,0.55]
[1722282780919,0.04163123,3313.1,3313.0,3.01841]
[1722282781107,0.04163123,3313.1,3312.9,3.0185]
[1722282781638,0.04163123,3313.1,3313.0,3.01841]
[1722282782021,2.2649,3313.5,3313.0,3.01841]
[1722282782221,3.02468279,3313.5,3313.1,3.01827]
[1722282783470,2.2649,3313.5,3313.1,3.01827]
[1722282783964,2.2649,3313.5,3313.2,3.01821]
[1722282784117,2.4841,3313.9,3313.3,3.01812]
[1722282784307,2.4841,3313.9,3313.4,3.01803]
[1722282784505,2.4841,3313.9,3313.3,3.01812]
[1722282784705,2.4841,3313.9,3313.5,3.0179]
[1722282784930,2.4841,3313.9,3313.6,3.01786]
[1722282785347,0.04012439,3313.8,3313.6,3.01786]
[1722282785642,0.04012439,3313.8,3313.7,3.01777]
[1722282786024,0.04012439,3313.8,3313.5,3.01788]
[1722282786244,0.04012439,3313.8,3313.4,3.01801]
[1722282787169,0.04012439,3313.8,3313.2,3.01814]
[1722282790290,3.05787439,3313.8,3313.0,3.01837]
[1722282790493,3.01777,3313.7,3313.1,3.01831]
[1722282790672,0.04015945,3313.6,3313.1,3.01831]
[1722282791142,0.04015945,3313.6,3313.0,3.01837]
[1722282791482,0.04015945,3313.6,3313.3,3.01811]
[1722282791651,3.0177,3313.8,3313.1,3.01824]
[1722282791855,3.05796584,3313.7,3312.9,3.0185]
[1722282792171,3.05796584,3313.7,3312.5,2.3863]
[1722282792172,3.01829,3313.2,3312.5,3.01883]
[1722282792370,2.405,3313.1,3312.5,3.01883]
[1722282792568,2.405,3313.1,3312.1,2.3551]
[1722282792569,2.44490312,3313.1,3312.4,3.01894]
[1722282792755,2.44490312,3313.1,3312.7,3.01868]
[1722282793268,2.44490312,3313.1,3312.5,3.0188]
[1722282794172,5.46322312,3313.1,3312.4,3.01894]
[1722282794854,2.44490312,3313.1,3312.4,3.01894]
[1722282795199,2.44490312,3313.1,3312.5,3.0188]
[1722282796039,5.46324312,3313.1,3312.4,3.01894]
[1722282796516,2.44490312,3313.1,3312.4,3.01894]
[1722282796789,2.44490312,3313.1,3312.2,3.01913]
[1722282796790,3.01856,3312.9,3312.2,3.01913]
[1722282796957,2.4656,3312.5,3311.8,3.01949]
[1722282797346,2.4656,3312.5,3311.9,3.01941]